fUST/lending_fUST_20250718
["ID","MTS","AMOUNT","RATE_DAILY","PERIOD"]
[373043982,1752846646681,-3857.05,0.00018608,2]
[373043984,1752846646691,-1821.61,0.00018608,2]
[373043986,1752846646700,-1727.91,0.00018608,2]
[373043988,1752846646711,-1582.6,0.00018608,2]
[373043990,1752846646720,-460.0,0.00018608,2]
[373043992,1752846646729,-285.46,0.00018608,2]
[373043994,1752846646738,-1350.12,0.00018608,2]
[373043996,1752846646747,-463.08,0.00018608,2]
[373043998,1752846646756,-460.0,0.00018608,2]
[373044000,1752846646765,-460.0,0.0001861,2]
[373044002,1752846646774,-460.0,0.0001861,2]
[373044004,1752846646783,-461.10212522,0.0001861,2]
[373044006,1752846646792,-594.63,0.0001861,2]
[373044008,1752846646801,-460.0,0.0001861,2]
[373044010,1752846646811,-362.88,0.0001861,2]
[373044012,1752846646820,-460.0,0.0001861,2]
[373044014,1752846646829,-1136.15,0.0001861,2]
[373044016,1752846646838,-901.37,0.0001861,2]
[373044018,1752846646848,-460.0,0.0001861,2]
[373044020,1752846646857,-460.0,0.0001861,2]
[373044022,1752846646867,-460.0,0.00018611,2]
[373044024,1752846646876,-555.02,0.00018611,2]
[373044026,1752846646888,-460.0,0.00018611,2]
[373044028,1752846646898,-460.26,0.00018611,2]
[373044030,1752846646907,-460.0,0.00018611,2]
[373044032,1752846646916,-460.0,0.00018611,2]
[373044034,1752846646926,-584.64,0.00018611,2]
[373044036,1752846646935,-460.0,0.00018611,2]
[373044038,1752846646944,-542.17,0.00018611,2]
[373044040,1752846646953,-404.35,0.00018611,2]
[373044042,1752846646963,-2981.59,0.00018611,2]
[373044044,1752846646973,-882.79,0.00018611,2]
[373044046,1752846646983,-460.0,0.00018611,2]
[373044048,1752846646996,-3239.59,0.00018612,2]
[373044050,1752846647006,-1289.85,0.00018612,2]
[373044052,1752846647015,-2252.23550073,0.00018624,2]
[373044054,1752846647024,-3392.63736832,0.00018787,2]
[373044056,1752846647034,-1298.35,0.00018864,2]
[373044058,1752846647044,-1845.69,0.00018864,2]
[373044060,1752846647053,-460.0,0.00018864,2]
[373044062,1752846647065,-1222.58,0.00018864,2]
[373044064,1752846647075,-2252.23550073,0.00018866,2]
[373044066,1752846647084,-2892.86,0.00018882,2]
[373044068,1752846647094,-463.75,0.00018882,2]
[373044070,1752846647103,-3857.05,0.00018882,2]
[373044072,1752846647113,-1821.61,0.00018882,2]
[373044074,1752846647122,-1727.91,0.00018882,2]
[373044076,1752846647131,-1582.6,0.00018882,2]
[373044079,1752846647145,-460.0,0.00018882,2]
[373044081,1752846647155,-1350.12,0.00018882,2]
[373044083,1752846647164,-460.0,0.00018882,2]
[373044085,1752846647173,-460.0,0.00018884,2]
[373044087,1752846647183,-460.0,0.00018884,2]
[373044089,1752846647193,-594.63,0.00018884,2]
[373044091,1752846647202,-460.0,0.00018884,2]
[373044093,1752846647211,-460.0,0.00018884,2]
[373044095,1752846647221,-1136.15,0.00018884,2]
[373044097,1752846647231,-901.37,0.00018884,2]
[373044099,1752846647240,-460.0,0.00018884,2]
[373044101,1752846647249,-460.0,0.00018884,2]
[373044103,1752846647259,-460.0,0.00018885,2]
[373044105,1752846647268,-460.0,0.00018885,2]
[373044107,1752846647277,-460.0,0.00018885,2]
[373044109,1752846647286,-460.0,0.00018885,2]
[373044111,1752846647299,-584.64,0.00018885,2]
[373044114,1752846647315,-460.0,0.00018885,2]
[373044117,1752846647330,-2981.59,0.00018885,2]
[373044119,1752846647343,-882.79,0.00018885,2]
[373044122,1752846647357,-460.0,0.00018885,2]
[373044124,1752846647370,-3239.59,0.00018886,2]
[373044127,1752846647385,-1289.85,0.00018886,2]
[373044129,1752846647400,-2699.3784318,0.000189,2]
[373044132,1752846647414,-1342.27807467,0.00018956,2]
[373044135,1752846647429,-260.0,0.00019065,2]
[373044137,1752846647443,-2252.23550073,0.00019107,2]
[373044140,1752846647455,-731.23018151,0.00019108,2]
[373044142,1752846647470,-1298.35,0.00019138,2]
[373044145,1752846647483,-1845.69,0.00019138,2]
[373044147,1752846647498,-460.0,0.00019138,2]
[373044150,1752846647511,-1222.58,0.00019138,2]
[373044152,1752846647522,-2892.86,0.00019156,2]
[373044154,1752846647535,-463.75,0.00019156,2]
[373044157,1752846647547,-3857.05,0.00019156,2]
[373044159,1752846647560,-1821.61,0.00019156,2]
[373044161,1752846647573,-1727.91,0.00019156,2]
[373044164,1752846647588,-1582.6,0.00019156,2]
[373044167,1752846647603,-460.0,0.00019156,2]
[373044169,1752846647618,-1350.12,0.00019156,2]
[373044171,1752846647629,-460.0,0.00019156,2]
[373044174,1752846647643,-500.0,0.00019157,2]
[373044176,1752846647654,-237.17066033,0.00019157,2]
[373044178,1752846647669,-660.92419075,0.00019157,2]
[373044181,1752846647683,-660.92419075,0.00019157,2]
[373044183,1752846647693,-660.92419075,0.00019157,2]
[373044185,1752846647705,-660.92419075,0.00019157,2]
[373044188,1752846647717,-660.92419075,0.00019157,2]
[373044190,1752846647730,-660.92419075,0.00019157,2]
[373044192,1752846647741,-660.92419075,0.00019157,2]
[373044194,1752846647752,-660.92419075,0.00019157,2]
[373044197,1752846647763,-660.92419075,0.00019157,2]
[373044199,1752846647775,-660.92419075,0.00019157,2]
[373044201,1752846647786,-660.92419075,0.00019157,2]
[373044203,1752846647798,-660.92419075,0.00019157,2]
[373044206,1752846647810,-460.0,0.00019158,2]
[373044208,1752846647821,-460.0,0.00019158,2]
[373044210,1752846647833,-594.63,0.00019158,2]
[373044212,1752846647845,-460.0,0.00019158,2]
[373044215,1752846647856,-460.0,0.00019158,2]
[373044217,1752846647868,-1136.15,0.00019158,2]
[373044219,1752846647879,-901.37,0.00019158,2]
[373044221,1752846647893,-460.0,0.00019158,2]
[373044224,1752846647905,-460.0,0.00019158,2]
[373044226,1752846647917,-460.0,0.00019159,2]
[373044228,1752846647928,-460.0,0.00019159,2]
[373044230,1752846647940,-460.0,0.00019159,2]
[373044233,1752846647952,-460.0,0.00019159,2]
[373044235,1752846647964,-584.64,0.00019159,2]
[373044237,1752846647976,-460.0,0.00019159,2]
[373044239,1752846647989,-2981.59,0.00019159,2]
[373044241,1752846648002,-882.79,0.00019159,2]
[373044244,1752846648013,-460.0,0.00019159,2]
[373044246,1752846648026,-3239.59,0.0001916,2]
[373044248,1752846648038,-1289.85,0.0001916,2]
[373044251,1752846648051,-5000.0,0.00019178,2]
[373044253,1752846648063,-3346.5712059,0.00019178,2]
[373044255,1752846648075,-186.786836,0.00019178,2]
[373044257,1752846648087,-666.0,0.00019178,2]
[373044260,1752846648098,-1710.6678412,0.00019322,2]
[373044262,1752846648110,-4639.54042305,0.00019329,2]
[373044264,1752846648122,-2252.23550073,0.00019348,2]
[373044266,1752846648135,-1298.35,0.00019412,2]
[373044269,1752846648147,-1845.69,0.00019412,2]
[373044271,1752846648159,-460.0,0.00019412,2]
[373044273,1752846648171,-1222.58,0.00019412,2]
[373044276,1752846648183,-2892.86,0.0001943,2]
[373044278,1752846648196,-463.75,0.0001943,2]
[373044280,1752846648208,-3857.05,0.0001943,2]
[373044282,1752846648219,-1821.61,0.0001943,2]
[373044285,1752846648231,-1727.91,0.0001943,2]
[373044287,1752846648243,-1582.6,0.0001943,2]
[373044289,1752846648255,-1350.12,0.0001943,2]
[373044292,1752846648266,-460.0,0.0001943,2]
[373044294,1752846648278,-460.0,0.00019432,2]
[373044296,1752846648289,-460.0,0.00019432,2]
[373044298,1752846648301,-594.63,0.00019432,2]
[373044301,1752846648313,-460.0,0.00019432,2]
[373044303,1752846648325,-460.0,0.00019432,2]
[373044305,1752846648336,-1136.15,0.00019432,2]
[373044307,1752846648350,-901.37,0.00019432,2]
[373044310,1752846648362,-460.0,0.00019432,2]
[373044312,1752846648375,-534.73996719,0.00019432,2]
[373044314,1752846648388,-460.0,0.00019433,2]
[373044330,1752846648525,-460.0,0.00019433,2]
[373044333,1752846648543,-460.0,0.00019433,2]
[373044334,1752846648553,-460.0,0.00019433,2]
[373044337,1752846648563,-584.64,0.00019433,2]
[373044339,1752846648573,-460.0,0.00019433,2]
[373044340,1752846648582,-2981.59,0.00019433,2]
[373044343,1752846648592,-882.79,0.00019433,2]
[373044345,1752846648602,-245.60767593,0.00019433,2]
[373044346,1752846648611,-3239.59,0.00019434,2]
[373044348,1752846648620,-1289.85,0.00019434,2]
[373044351,1752846648630,-500.0,0.0001955,2]
[373044353,1752846648641,-500.0,0.0001955,2]
[373044355,1752846648652,-500.53272985,0.0001955,2]
[373044357,1752846648662,-160.0,0.00019585,2]
[373044359,1752846648672,-2252.23550073,0.0001959,2]
[373044361,1752846648681,-503.14949113,0.00019605,2]
[373044363,1752846648691,-500.0,0.00019605,2]
[373044365,1752846648701,-500.46330033,0.00019605,2]
[373044367,1752846648711,-500.53978354,0.00019605,2]
[373044369,1752846648721,-500.0,0.00019605,2]
[373044371,1752846648730,-500.0,0.00019605,2]
[373044373,1752846648739,-500.38517312,0.00019605,2]
[373044375,1752846648749,-500.0,0.00019605,2]
[373044377,1752846648758,-360.0,0.00019613,2]
[373044379,1752846648767,-6955.9842611,0.00019617,2]
[373044381,1752846648777,-151.0,0.00019617,2]
[373044383,1752846648787,-151.0,0.00019617,2]
[373044385,1752846648796,-360.415099,0.00019617,2]
[373044387,1752846648806,-151.0,0.00019617,2]
[373044389,1752846648816,-360.415099,0.00019617,2]
[373044391,1752846648826,-215.63268315,0.00019617,2]
[373044393,1752846648835,-839.30593155,0.00019617,2]
[373044395,1752846648845,-476.25663856,0.00019617,2]
[373044397,1752846648854,-160.0,0.00019617,2]
[373044399,1752846648864,-160.0,0.00019617,2]
[373044401,1752846648874,-160.0,0.00019617,2]
[373044403,1752846648884,-214.4881157,0.00019617,2]
[373044405,1752846648894,-12610.43989422,0.00019617,2]
[373044407,1752846648903,-525.75194068,0.00019617,2]
[373044409,1752846648912,-160.0,0.00019617,2]
[373044411,1752846648922,-160.0,0.00019617,2]
[373044413,1752846648931,-230.89969799,0.00019617,2]
[373044414,1752846648942,-160.0,0.00019617,2]
[373044416,1752846648952,-95.47051245,0.00019617,2]
[373044429,1752846649085,-64.52948755,0.00019617,2]
[373044431,1752846649095,-500.196816,0.00019618,2]
[373044433,1752846649105,-500.96833344,0.00019618,2]
[373044435,1752846649115,-500.0,0.00019618,2]
[373044437,1752846649125,-500.0,0.00019625,2]
[373044439,1752846649135,-158.15246126,0.00019625,2]
[373044441,1752846649145,-158.14851708,0.00019625,2]
[373044443,1752846649155,-500.84219831,0.00019625,2]
[373044445,1752846649165,-158.14847227,0.00019625,2]
[373044447,1752846649175,-500.0,0.00019633,2]
[373044449,1752846649184,-500.0,0.00019633,2]
[373044451,1752846649194,-260.08541544,0.00019633,2]
[373044453,1752846649204,-250.0,0.00019644,2]
[373044455,1752846649214,-500.0,0.00019646,2]
[373044457,1752846649223,-500.0,0.00019646,2]
[373044459,1752846649233,-500.0,0.00019646,2]
[373044461,1752846649242,-500.0,0.00019646,2]
[373044463,1752846649252,-1298.35,0.00019686,2]
[373044465,1752846649262,-1845.69,0.00019686,2]
[373044467,1752846649272,-460.0,0.00019686,2]
[373044469,1752846649282,-1222.58,0.00019686,2]
[373044471,1752846649291,-2064.48809776,0.00019704,2]
[373044719,1752846651819,-828.37190224,0.00019704,2]
[373044721,1752846651829,-463.75,0.00019704,2]
[373044723,1752846651838,-3857.05,0.00019704,2]
[373044725,1752846651847,-1821.61,0.00019704,2]
[373044727,1752846651858,-1727.91,0.00019704,2]
[373044729,1752846651868,-1582.6,0.00019704,2]
[373044731,1752846651878,-1350.12,0.00019704,2]
[373044733,1752846651890,-460.0,0.00019704,2]
[373044735,1752846651901,-460.0,0.00019706,2]
[373044737,1752846651910,-460.0,0.00019706,2]
[373044739,1752846651920,-594.63,0.00019706,2]
[373044741,1752846651929,-460.0,0.00019706,2]
[373044744,1752846651939,-460.0,0.00019706,2]
[373044746,1752846651949,-1136.15,0.00019706,2]
[373044747,1752846651958,-901.37,0.00019706,2]
[373044749,1752846651968,-460.0,0.00019706,2]
[373044751,1752846651978,-460.0,0.00019707,2]
[373044753,1752846651990,-157.79,0.00019707,2]
[373044755,1752846652000,-460.0,0.00019707,2]
[373044757,1752846652010,-460.0,0.00019707,2]
[373044759,1752846652019,-584.64,0.00019707,2]
[373044761,1752846652029,-460.0,0.00019707,2]
[373044763,1752846652040,-2981.59,0.00019707,2]
[373044765,1752846652049,-882.79,0.00019707,2]
[373044768,1752846652059,-3239.59,0.00019708,2]
[373044770,1752846652070,-1289.85,0.00019708,2]
[373044771,1752846652079,-2252.23550073,0.00019831,2]
[373044774,1752846652090,-2067.16320149,0.0001988,2]
[373044806,1752846652394,-460.0,0.00016672,2]
[373044808,1752846652403,-61.36385006,0.0001669,2]
[373044829,1752846652590,-398.63614994,0.0001669,2]
[373044831,1752846652600,-460.0,0.0001669,2]
[373044833,1752846652610,-460.0,0.0001669,2]
[373044835,1752846652619,-460.0,0.0001669,2]
[373044837,1752846652629,-460.0,0.0001669,2]
[373044839,1752846652640,-460.0,0.00016946,2]
[373044841,1752846652650,-460.0,0.0001722,2]
[373044843,1752846652659,-460.0,0.00017494,2]
[373044845,1752846652669,-460.0,0.00017768,2]
[373044847,1752846652678,-460.0,0.00018042,2]
[373044849,1752846652687,-460.0,0.00018316,2]
[373044850,1752846652697,-456.18369076,0.0001988,2]
[373044853,1752846652709,-2097.75493563,0.0001988,2]
[373044855,1752846652718,-500.0,0.00019919,2]
[373044857,1752846652727,-500.0,0.00019919,2]
[373044859,1752846652736,-500.0,0.00019919,2]
[373044861,1752846652746,-500.0,0.00019919,2]
[373044863,1752846652755,-500.0,0.00019919,2]
[373044865,1752846652764,-500.45551937,0.00019919,2]
[373044867,1752846652774,-500.0,0.00019919,2]
[373044869,1752846652783,-500.0,0.00019919,2]
[373044871,1752846652793,-615.08097764,0.00019919,2]
[373044873,1752846652802,-383.73021353,0.00019919,2]
[373044875,1752846652812,-298.95827915,0.00019919,2]
[373044877,1752846652821,-500.0,0.00019919,2]
[373044879,1752846652830,-587.0,0.00019922,2]
[373044881,1752846652840,-598.82890193,0.0001996,2]
[373044883,1752846652852,-699.52109807,0.0001996,2]
[373044885,1752846652861,-1845.69,0.0001996,2]
[373044887,1752846652871,-460.0,0.0001996,2]
[373044889,1752846652880,-1222.58,0.0001996,2]
[373044891,1752846652890,-151.0,0.00019969,2]
[373044893,1752846652899,-151.0,0.00019969,2]
[373044895,1752846652908,-151.0,0.00019969,2]
[373044897,1752846652918,-151.0,0.00019969,2]
[373044899,1752846652927,-429.318869,0.00019973,2]
[373044900,1752846652936,-742.9772355,0.00019978,2]
[373044901,1752846652948,-2149.8827645,0.00019978,2]
[373044902,1752846652957,-463.75,0.00019978,2]
[373044903,1752846652966,-3857.05,0.00019978,2]
[373044904,1752846652975,-1821.61,0.00019978,2]
[373044905,1752846652984,-1727.91,0.00019978,2]
[373044906,1752846652997,-1582.6,0.00019978,2]
[373044907,1752846653007,-1350.12,0.00019978,2]
[373044908,1752846653016,-460.0,0.00019978,2]
[373044909,1752846653025,-460.0,0.0001998,2]
[373044910,1752846653039,-460.0,0.0001998,2]
[373044911,1752846653050,-594.63,0.0001998,2]
[373044912,1752846653060,-460.0,0.0001998,2]
[373044913,1752846653075,-460.0,0.0001998,2]
[373044914,1752846653084,-1136.15,0.0001998,2]
[373044915,1752846653094,-901.37,0.0001998,2]
[373044916,1752846653104,-374.51,0.0001998,2]
[373044917,1752846653114,-460.0,0.00019981,2]
[373044918,1752846653123,-460.0,0.00019981,2]
[373044919,1752846653215,-460.0,0.00019981,2]
[373044921,1752846653244,-584.64,0.00019981,2]
[373044922,1752846653255,-460.0,0.00019981,2]
[373044924,1752846653264,-2981.59,0.00019981,2]
[373044926,1752846653274,-882.79,0.00019981,2]
[373044928,1752846653283,-1289.85,0.00019982,2]
[373044930,1752846653292,-151.0,0.00019989,2]
[373044932,1752846653302,-151.322559,0.00019989,2]
[373044934,1752846653311,-301.03512135,0.0002,2]
[373044936,1752846653321,-151.0,0.0002,2]
[373044938,1752846653331,-151.0,0.00020009,2]
[373044940,1752846653340,-151.0,0.00020009,2]
[373044942,1752846653349,-151.0,0.00020009,2]
[373044944,1752846653359,-299.854066,0.00020009,2]
[373044946,1752846653369,-299.854066,0.00020009,2]
[373044948,1752846653378,-1019.620488,0.00020009,2]
[373044950,1752846653388,-1019.620488,0.00020009,2]
[373044952,1752846653400,-151.0,0.00020009,2]
[373044954,1752846653410,-700.0,0.00020009,2]
[373044956,1752846653419,-402.936892,0.00020027,2]
[373044958,1752846653428,-179.91004498,0.00020058,2]
[373044960,1752846653438,-151.0,0.0002006,2]
[373044961,1752846653448,-151.0,0.0002006,2]
[373044963,1752846653458,-151.0,0.0002006,2]
[373044966,1752846653467,-151.0,0.0002006,2]
[373044968,1752846653478,-151.0,0.0002006,2]
[373044970,1752846653487,-151.0,0.0002006,2]
[373044971,1752846653497,-224.680209,0.0002006,2]
[373044973,1752846653506,-224.680209,0.0002006,2]
[373044975,1752846653515,-528.865095,0.0002006,2]
[373044977,1752846653524,-528.865095,0.0002006,2]
[373044979,1752846653533,-2252.23550073,0.00020072,2]
[373044981,1752846653542,-151.0,0.00020081,2]
[373044983,1752846653552,-201.335055,0.00020081,2]
[373044985,1752846653561,-201.335055,0.00020081,2]
[373044987,1752846653570,-12082.63513728,0.00020082,2]
[373044989,1752846653579,-151.147632,0.00020082,2]
[373044991,1752846653589,-332.80144525,0.00020098,2]
[373044993,1752846653598,-500.0,0.00020098,2]
[373044995,1752846653607,-1000.0,0.00020153,2]
[373044997,1752846653617,-1000.0,0.00020153,2]
[373044999,1752846653626,-711.55460821,0.00020153,2]
[373045001,1752846653635,-500.0,0.00020153,2]
[373045003,1752846653646,-460.0,0.00020161,2]
[373045005,1752846653655,-1000.0,0.00020173,2]
[373045007,1752846653664,-591.64731874,0.00020181,2]
[373045009,1752846653673,-1001.81370368,0.00020181,2]
[373045011,1752846653682,-295.534929,0.00020187,2]
[373045013,1752846653691,-100.05740076,0.00020194,2]
[373045015,1752846653703,-381.92818453,0.00020194,2]
[373045017,1752846653714,-518.01441471,0.00020194,2]
[373045019,1752846653724,-1000.0,0.00020194,2]
[373045021,1752846653733,-504.87611103,0.00020194,2]
[373045023,1752846653742,-1000.0,0.00020194,2]
[373045025,1752846653752,-1298.35,0.00020233,2]
[373045027,1752846653761,-904.45847873,0.00020233,2]
[373045030,1752846653772,-941.23152127,0.00020233,2]
[373045031,1752846653781,-460.0,0.00020233,2]
[373045034,1752846653790,-1222.58,0.00020233,2]
[373045036,1752846653801,-168.0,0.0002025,2]
[373045038,1752846653810,-2892.86,0.00020252,2]
[373045040,1752846653819,-463.75,0.00020252,2]
[373045042,1752846653828,-3857.05,0.00020252,2]
[373045044,1752846653838,-1821.61,0.00020252,2]
[373045046,1752846653847,-1727.91,0.00020252,2]
[373045048,1752846653856,-1582.6,0.00020252,2]
[373045049,1752846653866,-1350.12,0.00020252,2]
[373045052,1752846653875,-460.0,0.00020252,2]
[373045053,1752846653885,-460.0,0.00020254,2]
[373045055,1752846653896,-460.0,0.00020254,2]
[373045057,1752846653906,-594.63,0.00020254,2]
[373045060,1752846653915,-387.97,0.00020254,2]
[373045062,1752846653925,-460.0,0.00020254,2]
[373045063,1752846653934,-1136.15,0.00020254,2]
[373045065,1752846653944,-901.37,0.00020254,2]
[373045067,1752846653954,-460.0,0.00020255,2]
[373045069,1752846653963,-460.0,0.00020255,2]
[373045071,1752846653973,-460.0,0.00020255,2]
[373045073,1752846653983,-584.64,0.00020255,2]
[373045075,1752846653995,-426.93,0.00020255,2]
[373045077,1752846654005,-1281.83347873,0.00020255,2]
[373045080,1752846654022,-460.0,0.0001859,2]
[373045082,1752846654031,-1699.75652127,0.00020255,2]
[373045084,1752846654043,-882.79,0.00020255,2]
[373045086,1752846654053,-1289.85,0.00020256,2]
[373045088,1752846654063,-1710.6678412,0.00020276,2]
[373045090,1752846654074,-2252.23550073,0.00020314,3]
[373045092,1752846654084,-341.0,0.00020322,2]
[373045094,1752846654094,-168.0,0.00020334,2]
[373045096,1752846654103,-151.0,0.00020356,2]
[373045098,1752846654113,-161.544262,0.00020356,2]
[373045100,1752846654123,-151.0,0.00020356,2]
[373045102,1752846654132,-731.23018151,0.00020367,2]
[373045104,1752846654144,-319.243488,0.00020375,2]
[373045106,1752846654153,-319.243488,0.00020375,2]
[373045108,1752846654163,-151.0,0.000204,3]
[373045110,1752846654173,-501.05616911,0.00020467,2]
[373045112,1752846654183,-1127.71486248,0.00020467,2]
[373045114,1752846654193,-580.27611921,0.00020467,2]
[373045116,1752846654202,-1000.0,0.00020467,2]
[373045118,1752846654212,-1000.0,0.00020467,2]
[373045120,1752846654222,-1000.0,0.00020467,2]
[373045122,1752846654232,-151.158072,0.00020481,2]
[373045124,1752846654241,-249.754026,0.00020481,2]
[373045126,1752846654250,-249.754026,0.00020481,2]
[373045128,1752846654260,-151.0,0.00020481,2]
[373045130,1752846654270,-314.889035,0.00020481,2]
[373045132,1752846654280,-314.889035,0.00020481,2]
[373045134,1752846654289,-243.483681,0.00020481,2]
[373045136,1752846654299,-243.483681,0.00020481,2]
[373045138,1752846654308,-151.0,0.00020481,2]
[373045140,1752846654319,-416.331597,0.00020481,2]
[373045142,1752846654329,-416.331597,0.00020481,2]
[373045144,1752846654339,-1298.35,0.00020507,2]
[373045146,1752846654349,-1845.69,0.00020507,2]
[373045148,1752846654359,-566.41946023,0.00020507,2]
[373045150,1752846654368,-1222.58,0.00020507,2]
[373045152,1752846654378,-2892.86,0.00020526,2]
[373045154,1752846654388,-463.75,0.00020526,2]
[373045156,1752846654398,-3857.05,0.00020526,2]
[373045158,1752846654408,-1821.61,0.00020526,2]
[373045160,1752846654417,-1727.91,0.00020526,2]
[373045162,1752846654427,-1582.6,0.00020526,2]
[373045164,1752846654437,-1350.12,0.00020526,2]
[373045166,1752846654447,-460.0,0.00020526,2]
[373045168,1752846654456,-460.0,0.00020528,2]
[373045170,1752846654466,-460.0,0.00020528,2]
[373045172,1752846654475,-594.63,0.00020528,2]
[373045174,1752846654484,-460.0,0.00020528,2]
[373045176,1752846654493,-1136.15,0.00020528,2]
[373045178,1752846654502,-901.37,0.00020528,2]
[373045180,1752846654512,-151.0,0.00020528,2]
[373045182,1752846654521,-152.067781,0.00020528,2]
[373045184,1752846654531,-360.415099,0.00020528,2]
[373045186,1752846654540,-151.0,0.00020528,2]
[373045188,1752846654549,-360.415099,0.00020528,2]
[373045190,1752846654559,-151.0,0.00020529,2]
[373045192,1752846654568,-151.470043,0.00020529,2]
[373045194,1752846654577,-151.209155,0.00020529,2]
[373045196,1752846654587,-460.0,0.00020529,2]
[373045198,1752846654596,-460.0,0.00020529,2]
[373045200,1752846654605,-323.9,0.00020529,2]
[373045202,1752846654615,-584.64,0.00020529,2]
[373045204,1752846654624,-2981.59,0.00020529,2]
[373045206,1752846654634,-882.79,0.00020529,2]
[373045207,1752846654645,-1289.85,0.0002053,2]
[373045210,1752846654654,-2252.23550073,0.00020555,3]
[373045211,1752846654664,-151.0,0.0002063,2]
[373045213,1752846654673,-151.0,0.0002063,2]
[373045215,1752846654683,-177.396126,0.0002063,2]
[373045217,1752846654693,-177.396126,0.0002063,2]
[373045219,1752846654702,-151.0,0.000207,4]
[373045222,1752846654712,-1500.0,0.00020701,2]
[373045223,1752846654721,-1500.0,0.00020701,2]
[373045225,1752846654731,-560.0,0.00020708,2]
[373045227,1752846654740,-500.40934655,0.00020721,2]
[373045229,1752846654750,-185981.92165322,0.00020739,2]
[373045231,1752846654760,-151.0,0.00020739,2]
[373045234,1752846654770,-151.0,0.00020739,2]
[373045235,1752846654780,-151.0,0.00020739,2]
[373045238,1752846654789,-201.335055,0.00020739,2]
[373045239,1752846654799,-201.335055,0.00020739,2]
[373045242,1752846654808,-2019.401165,0.00020739,2]
[373045244,1752846654819,-2019.401165,0.00020739,2]
[373045266,1752846655036,-151.0,0.00020739,2]
[373045268,1752846655047,-151.0,0.00020739,2]
[373045270,1752846655056,-151.0,0.00020739,2]
[373045272,1752846655067,-151.0,0.00020739,2]
[373045274,1752846655076,-151.358384,0.00020739,2]
[373045276,1752846655085,-151.0,0.00020739,2]
[373045278,1752846655095,-151.0,0.00020739,2]
[373045280,1752846655104,-151.0,0.00020739,2]
[373045282,1752846655113,-151.0,0.00020739,2]
[373045284,1752846655124,-151.0,0.00020739,2]
[373045286,1752846655133,-151.0,0.00020739,2]
[373045288,1752846655144,-518.305928,0.00020739,2]
[373045290,1752846655153,-518.305928,0.00020739,2]
[373045292,1752846655162,-319.243488,0.00020739,2]
[373045294,1752846655171,-319.243488,0.00020739,2]
[373045296,1752846655181,-151.0,0.00020739,2]
[373045298,1752846655191,-223.173852,0.00020739,2]
[373045300,1752846655200,-151.0,0.00020739,2]
[373045302,1752846655210,-299.854066,0.00020739,2]
[373045304,1752846655219,-299.854066,0.00020739,2]
[373045306,1752846655229,-151.0,0.00020739,2]
[373045308,1752846655239,-1019.620488,0.00020739,2]
[373045310,1752846655248,-1019.620488,0.00020739,2]
[373045312,1752846655258,-151.0,0.00020739,2]
[373045314,1752846655267,-151.0,0.00020739,2]
[373045316,1752846655276,-151.0,0.00020739,2]
[373045318,1752846655285,-151.0,0.00020739,2]
[373045320,1752846655294,-360.415099,0.00020739,2]
[373045322,1752846655304,-151.0,0.00020739,2]
[373045324,1752846655314,-360.415099,0.00020739,2]
[373045326,1752846655323,-151.0,0.00020739,2]
[373045328,1752846655332,-1003.18757773,0.00020742,2]
[373045330,1752846655342,-1500.0,0.00020742,2]